Cogmind - Beta 13 @@@ ROGUE MODE // 2024.04.27 @ 21:56:19 Player: A Moose Result: Destroyed by Y-45 Defender with Beam Rifle Performance ------------- Evolutions (2) 1000 Regions Visited (6) 1200 Robots Destroyed (40) 200 Value Destroyed (2198) 2198 Prototype IDs (2) 40 Alien Tech Used (0) 0 Bonus (1275) 1275 TOTAL SCORE: 5913 Bonus ------- High Alert Combat Kills 226 Follower Combat Kills 49 Entered Garrisons 200 Used RIF Installer 500 Aligned with FarCom 300 Cogmind --------- Core Integrity 0/550 Matter 295/300 Energy 100/100 System Corruption 17% Temperature Cool (9) Movement Treading (320) Ox2 Location -8/Garrison Parts ------- > --- POWER (1) -------- (None) > --- PROPULSION (2) --- Light Treads Improved Aluminum Leg > --- UTILITY (6) ------ High-capacity Storage Unit Melee Analysis Suite Relay Coupler [Swarmer] (13) Relay Coupler [Grunt] (11) > --- WEAPON (2) ------- Advanced Plasma Cannon > --- INVENTORY (20) --- Light Nuclear Core Micro Nuclear Core Micro Nuclear Core Micro Nuclear Core Large Battery (200) Improved Terrain Scan Processor Melee Analysis Suite Relay Coupler [Brawler] (37) Relay Coupler [Brawler] (39) Relay Coupler [Hunter] (18) Army-in-a-Box Improved Remote Datajack Peak State ------------ > --- POWER ------------ Light Angular Momentum Engine > --- PROPULSION ------- Compact Wheel Compact Wheel > --- UTILITY ---------- Improved Heat Sink High-capacity Storage Unit Recoil Nullifier Hacking Suite System Shield > --- WEAPON ----------- KE Penetrator Hypervelocity Coil Gun > --- INVENTORY -------- Nuclear Core Micro Nuclear Core Micro Nuclear Core Micro Nuclear Core Light Treads Light Treads Compact Wheel Medium Battery Large Battery Improved Terrain Scan Processor Army-in-a-Box Arc Projector Arc Projector Advanced Plasma Cannon [Rating: 44] Favorites ----------- Power Light Angular Momentum Engine Engine Light Angular Momentum Engine Power Core Nuclear Core Propulsion Compact Wheel Treads Light Treads Leg Carbon-fiber Leg Wheel Compact Wheel Utility High-capacity Storage Unit Device Recoil Nullifier Storage High-capacity Storage Unit Processor Melee Analysis Suite Hackware Hacking Suite Protection Core Shielding Weapon Light Assault Rifle Energy Gun Arc Projector Energy Cannon Advanced Plasma Cannon Ballistic Gun Light Assault Rifle Ballistic Cannon Light Cannon Launcher Grenade Launcher Special Weapon Improved Remote Datajack Build | -11 -10 -10 -10 -9 -8 -8 ------- Run | Yrd Mat Min Exi Min Mat Gar Slots Evolved 4 | . . . . . 4 . Power . | . . . . . . . Propulsion . | . . . . . . . Utility 4 | . . . . . 4 . Weapon . | . . . . . . . Parts Attached 54 | 9 3 2 6 . 3 31 Power 7 | 1 . 1 1 . . 4 Engine 4 | 1 . 1 1 . . 1 Core 3 | . . . . . . 3 Reactor . | . . . . . . . Propulsion 13 | 2 1 . 1 . . 9 Treads 3 | . . . . . . 3 Leg 5 | . . . . . . 5 Wheel 5 | 2 1 . 1 . . 1 Hover . | . . . . . . . Flight . | . . . . . . . Utility 18 | 3 . . 4 . 2 9 Device 7 | 2 . . 2 . 1 2 Storage 4 | 1 . . 1 . . 2 Processor 1 | . . . . . . 1 Hackware 4 | . . . 1 . 1 2 Protection 2 | . . . . . . 2 Artifact . | . . . . . . . Weapon 16 | 3 2 1 . . 1 9 Energy Gun 5 | 2 1 . . . . 2 Energy Cannon 1 | . . . . . . 1 Ballistic Gun 7 | 1 . . . . 1 5 Ballistic Cannon 1 | . . 1 . . . . Launcher 1 | . 1 . . . . . Special Weapon 1 | . . . . . . 1 Impact Weapon . | . . . . . . . Slashing Weapon . | . . . . . . . Piercing Weapon . | . . . . . . . Special Melee Weapon . | . . . . . . . Unidentified Prototypes 2 | . . . 2 . . . Parts Lost 31 | . 2 2 . . . 27 Power 5 | . . 1 . . . 4 Propulsion 10 | . 1 . . . . 9 Utility 7 | . . . . . . 7 Weapon 9 | . 1 1 . . . 7 Highest Loss Streak 5 | . 2 2 . . . 5 To Critical Strikes 1 | . . . . . . 1 Average Slot Usage (%) 88 | . 96 90 100 100 78 82 Engine 7 | . 14 13 14 14 9 3 Core 2 | . . . . . . 4 Treads 3 | . . . . . . 5 Leg 5 | . . . . . . 8 Wheel 12 | . 24 28 28 28 18 2 Device 8 | . 14 14 5 . 7 9 Storage 11 | . 14 14 14 14 9 10 Processor 1 | . . . . . . 3 Hackware 11 | . . . 8 14 16 14 Protection 2 | . . . . . . 3 Energy Gun 2 | . 9 . . . . 3 Energy Cannon 1 | . . . . . . 2 Ballistic Gun 11 | . 14 14 14 14 9 9 Ballistic Cannon 4 | . . 5 14 14 9 . Naked Turns . | . . . . . . . Heaviest Build 63 | 13 15 15 47 47 52 63 Greatest Support 40 | 32 32 26 32 32 32 40 Greatest Overweight (x) 4 | . . . 1 1 1 4 Average Overweight (x) . | . . . . 1 1 1 Largest Inventory Capacity 20 | 8 8 8 20 20 20 20 Average Capacity 16 | 7 8 8 11 20 20 20 Most Carried 20 | 5 7 8 10 15 20 20 Average Carried 14 | 1 5 7 8 12 17 19 Final Capacity 20 | 8 8 8 20 20 20 20 Final Carried 20 | 4 7 7 10 15 20 17 Class Distribution -------------------- 41% | Mutant 30% | Scavenger-Mutant 13% | Bothacker-Mutant 13% | Hacker-Mutant Dominant Class ---------------- Mutant | -10/Materials Mutant | -10/Mines Mutant | -10/Exiles Mutant | -9/Mines Hacker-Mutant | -8/Materials Scavenger-Mutant | -8/Garrison Resources | -11 -10 -10 -10 -9 -8 -8 ----------- Run | Yrd Mat Min Exi Min Mat Gar Matter Collected 1410 | 290 76 33 . 115 . 896 Remotely . | . . . . . . . Salvage Created 1653 | 112 197 56 . 10 . 1278 Parts 101 | 6 11 3 . 1 . 80 Haulers Intercepted . | . . . . . . . Recyclers Shooed 2 | 1 1 . . . . . Parts Field Recycled . | . . . . . . . Retrieved Matter . | . . . . . . . Parts Self-Destructed . | . . . . . . . Prevented . | . . . . . . . Kills | -11 -10 -10 -10 -9 -8 -8 ------- Run | Yrd Mat Min Exi Min Mat Gar Combat Hostiles Destroyed 35 | . 4 2 . 2 . 27 Guns 23 | . 2 1 . 1 . 19 Cannons 8 | . . . . 1 . 7 AOE 4 | . 2 1 . . . 1 Classes Destroyed 12 | 2 3 . . 1 . 6 Worker 1 | . 1 . . . . . Tunneler 2 | 2 . . . . . . Recycler 1 | 1 . . . . . . Operator 1 | . 1 . . . . . Swarmer 4 | . . . . 2 . 2 Grunt 13 | . 4 2 . . . 7 Brawler 2 | . . . . . . 2 Duelist 3 | . . . . . . 3 Sentry 2 | . . . . . . 2 Specialist 2 | . . . . . . 2 Hunter 3 | . . . . . . 3 Programmer 6 | . . . . . . 6 Best Kill Streak 4 | 2 4 1 . 2 . 4 Combat Bots Only 4 | . 2 1 . 2 . 4 Max Kills in Single Turn 2 | 1 2 1 . 1 . 1 Gunslinging . | . . . . . . . Exploded 2 | . 2 1 . . . 1 Melee . | . . . . . . . Uniques/NPCs Destroyed . | . . . . . . . Combat | -11 -10 -10 -10 -9 -8 -8 -------- Run | Yrd Mat Min Exi Min Mat Gar Hostile Shots Fired 294 | . 25 12 . 10 . 247 Missed 83 | . 6 . . 2 . 75 Damage Taken 3291 | . 264 252 . 60 . 2715 Core 698 | . 67 59 . 14 . 558 Absorbed by Shields 53 | . . . . . . 53 Redirected to Shielding 47 | . . . . . . 47 Core Remaining (%) 72 | 100 . . . 44 . . Volleys Fired 154 | 10 17 13 . 7 . 107 Largest 2 | 2 2 2 . 2 . 2 Hottest 153 | 60 60 50 . 55 . 153 Shots Fired 274 | 20 34 15 . 14 . 191 Gun 225 | 20 32 13 . 7 . 153 Cannon 37 | . . . . 7 . 30 Launcher 4 | . 2 2 . . . . Special 8 | . . . . . . 8 Kinetic 179 | 10 17 13 . 14 . 125 Thermal 40 | 10 11 . . . . 19 Explosive 4 | . 2 2 . . . . Electromagnetic 43 | . 4 . . . . 39 Robot Hit Streak 12 | 4 11 12 . 4 . 12 Robot Miss Streak 7 | 1 4 2 . 2 . 7 Penetration Max 1 | . . . . . . 1 Secondary Targets 5 | . . . . . . 5 Max Gunslinging Chain 1 | . . . . . . 1 Shots Hit Robots 151 | 14 19 11 . 10 . 97 Core Hits 73 | 4 12 5 . 3 . 49 Critical Kills 5 | . . . . . . 5 Critical Parts Destroyed 3 | . . . . . . 3 Critical Strikes 10 | . . . . . . 10 Destroy 9 | . . . . . . 9 Blast 1 | . . . . . . 1 Melee Attacks . | . . . . . . . Impact . | . . . . . . . Slashing . | . . . . . . . Piercing . | . . . . . . . Sneak Attacks . | . . . . . . . Combat Hostiles . | . . . . . . . Follow-up Attacks . | . . . . . . . Damage Inflicted 2754 | 141 276 195 . 141 . 2001 Guns 1786 | 141 197 75 . 33 . 1340 Cannons 670 | . . . . 108 . 562 Explosions 298 | . 79 120 . . . 99 Melee . | . . . . . . . Ramming . | . . . . . . . Kinetic 1700 | 51 79 75 . 141 . 1354 Thermal 677 | 90 65 . . . . 522 Explosive 199 | . 79 120 . . . . Electromagnetic 178 | . 53 . . . . 125 Impact . | . . . . . . . Slashing . | . . . . . . . Piercing . | . . . . . . . Highest Corruption 17 | . . . . . . 17 Average Corruption 7 | . . . . . . 7 Corruption Purged . | . . . . . . . Corruption Blocked . | . . . . . . . Effects 44 | . . . . . . 44 Message Errors 11 | . . . . . . 11 Matter Fused 12 | . . . . . . 12 Heat Flow Errors 5 | . . . . . . 5 Energy Discharges 9 | . . . . . . 9 Data Loss (minor) 2 | . . . . . . 2 Data Loss (major) 1 | . . . . . . 1 Misfires 2 | . . . . . . 2 Alerts 1 | . . . . . . 1 Weapon Failures 1 | . . . . . . 1 Overload Shots . | . . . . . . . Overflow Damage 4 | . . 4 . . . . Projectiles . | . . . . . . . Explosions 4 | . . 4 . . . . Melee . | . . . . . . . Knockbacks 3 | . . . . 2 . 1 Impact . | . . . . . . . Kinetic 3 | . . . . 2 . 1 Secondary . | . . . . . . . Self-Inflicted Damage 112 | . 19 71 . . . 22 Shots 4 | . 1 2 . . . 1 Rammed . | . . . . . . . Targets Rammed . | . . . . . . . Kicked . | . . . . . . . Crushed . | . . . . . . . Highest Temperature 359 | 40 155 19 . 28 . 359 Average Temperature 77 | 15 73 8 . 12 . 94 Received Heat Transfer 635 | . 156 108 . . . 371 Effects 3 | . . . . . . 3 Interference 3 | . . . . . . 3 Siege Activations . | . . . . . . . Robots Corrupted . | . . . . . . . Combat Hostiles . | . . . . . . . Parts Fried . | . . . . . . . Impact Corruptions . | . . . . . . . Robots Melted . | . . . . . . . Combat Hostiles . | . . . . . . . Parts Melted 3 | . . . . . . 3 Heat Transferred 1050 | 200 150 . . . . 700 Parts Sabotaged . | . . . . . . . Parts Stolen . | . . . . . . . Parts Stripped . | . . . . . . . Power Chain Reactions 1 | . . . . . . 1 Alert | -11 -10 -10 -10 -9 -8 -8 ------- Run | Yrd Mat Min Exi Min Mat Gar Peak Influence 904 | 15 169 138 . 66 25 904 Initial 65 | . 9 65 . . 25 16 Average 328 | 5 67 128 . 21 25 478 Maximum Alert Level 3 | . . . . . . 3 Low Security (%) 48 | 100 100 100 . 100 100 19 Level 1 8 | . . . . . . 12 Level 2 25 | . . . . . . 39 Level 3 17 | . . . . . . 27 Level 4 . | . . . . . . . Level 5 . | . . . . . . . High Security . | . . . . . . . Max Security . | . . . . . . . Squads Dispatched 1 | . 1 . . . . . Investigation . | . . . . . . . Extermination . | . . . . . . . Reinforcement 1 | . 1 . . . . . Assault . | . . . . . . . Garrison . | . . . . . . . Intercept . | . . . . . . . Searches Triggered . | . . . . . . . Construction Impeded . | . . . . . . . Haulers Reinforced . | . . . . . . . Active Scanning Responses . | . . . . . . . Cargo Convoy Interrupts . | . . . . . . . Stealth | -11 -10 -10 -10 -9 -8 -8 --------- Run | Yrd Mat Min Exi Min Mat Gar Distress Signals . | . . . . . . . Communications Jammed . | . . . . . . . Distress Signals . | . . . . . . . Times Spotted 46 | . 5 1 . 3 . 37 Peak Tracking Total 5 | . 2 1 . 2 . 5 Tactical Retreats 2 | . . . . 1 . 1 Traps | -11 -10 -10 -10 -9 -8 -8 ------- Run | Yrd Mat Min Exi Min Mat Gar Traps Triggered 13 | . . . . . . 13 Indirectly . | . . . . . . . Trap Hack Attempts . | . . . . . . . Triggered . | . . . . . . . Disarmed . | . . . . . . . Reprogrammed . | . . . . . . . Reused . | . . . . . . . Traps Extracted . | . . . . . . . Installed . | . . . . . . . Triggered . | . . . . . . . Machines | -11 -10 -10 -10 -9 -8 -8 ---------- Run | Yrd Mat Min Exi Min Mat Gar Machines Disabled 6 | . 2 . . . . 4 Max in Single Turn 2 | . 2 . . . . 1 Garrison Relay 3 | . . . . . . 3 Machines Repaired . | . . . . . . . Machines Dismantled . | . . . . . . . Machines Sabotaged . | . . . . . . . Overloaded Fab Kills . | . . . . . . . Hacking | -11 -10 -10 -10 -9 -8 -8 --------- Run | Yrd Mat Min Exi Min Mat Gar Machines Accessed 3 | . . . . . 1 2 Terminals 2 | . . . . . . 2 Fabricators . | . . . . . . . Repair Stations . | . . . . . . . Recycling Units . | . . . . . . . Scanalyzers . | . . . . . . . Garrison Access 1 | . . . . . 1 . Total Hacks 6 | . . . . . 1 5 Successful 3 | . . . . . 1 2 Failed 3 | . . . . . . 3 Catastrophic 1 | . . . . . . 1 Database Lockouts . | . . . . . . . Manual 2 | . . . 1 . . 1 Terminals 5 | . . . . . . 5 Fabricators . | . . . . . . . Repair Stations . | . . . . . . . Recycling Units . | . . . . . . . Scanalyzers . | . . . . . . . Garrison Access 1 | . . . . . 1 . Terminal Hacks 2 | . . . . . . 2 Emergency Access Points 1 | . . . . . . 1 Patrol Navigation 1 | . . . . . . 1 Fabricator Hacks . | . . . . . . . Repair Station Hacks . | . . . . . . . Recycling Unit Hacks . | . . . . . . . Scanalyzer . | . . . . . . . Garrison Access Hacks 1 | . . . . . 1 . Unlock Access 1 | . . . . . 1 . Unauthorized Hacks . | . . . . . . . Terminals . | . . . . . . . Fabricators . | . . . . . . . Repair Stations . | . . . . . . . Recycling Units . | . . . . . . . Scanalyzers . | . . . . . . . Garrison Access . | . . . . . . . Data Cores Recovered . | . . . . . . . Used . | . . . . . . . Hacking Detections 2 | . . . . . . 2 Full Trace Events 1 | . . . . . . 1 Feedback Events . | . . . . . . . Feedback Blocked . | . . . . . . . Robot Schematics Acquired . | . . . . . . . Robots Built . | . . . . . . . Authchips . | . . . . . . . Time . | . . . . . . . Total Robot Build Rating . | . . . . . . . Part Schematics Acquired . | . . . . . . . Parts Built . | . . . . . . . Authchips . | . . . . . . . Time . | . . . . . . . Total Part Build Rating . | . . . . . . . Parts Repaired . | . . . . . . . Time . | . . . . . . . Parts Recycled . | . . . . . . . Recycled Matter . | . . . . . . . Retrieved Matter . | . . . . . . . Retrieved Components . | . . . . . . . Parts Scanalyzed . | . . . . . . . Part Schematics Acquired . | . . . . . . . Parts Damaged . | . . . . . . . Bothacking | -11 -10 -10 -10 -9 -8 -8 ------------ Run | Yrd Mat Min Exi Min Mat Gar Used RIF Installer 1 | . . . . . . 1 Robots Hacked 4 | . . . . . . 4 Non-combat . | . . . . . . . Combat 4 | . . . . . . 4 Robot Hacks Applied 4 | . . . . . . 4 amplify_resonance 1 | . . . . . . 1 formatsys_high 3 | . . . . . . 3 Relay Couplers Released 12 | . . . . . . 12 Machine Destruction 12 | . . . . . . 12 Attached 2 | . . . . . . 2 Fabnet Peak Effective % . | . . . . . . . Robots Rewired . | . . . . . . . Allies Hacked . | . . . . . . . Hacks Repelled . | . . . . . . . Allies | -11 -10 -10 -10 -9 -8 -8 -------- Run | Yrd Mat Min Exi Min Mat Gar Total Allies 4 | . . . . 1 . 3 Largest Group 2 | . . . . 1 . 2 Highest-Rated Group 32 | . . . . 31 . 32 Highest-Rated Ally 31 | . . . . 31 . 16 Total Orders . | . . . . . . . Ally Attacks 18 | . . . . 9 . 9 Total Damage 200 | . . . . 129 . 71 Kills 3 | . . . . 1 . 2 Allies Corrupted . | . . . . . . . Allies Melted . | . . . . . . . Intel | -11 -10 -10 -10 -9 -8 -8 ------- Run | Yrd Mat Min Exi Min Mat Gar Robot Analysis Total . | . . . . . . . Derelict Logs Recovered 2 | . . 1 . 1 . . Drone Launches . | . . . . . . . Drone Recoveries . | . . . . . . . Exploration | -11 -10 -10 -10 -9 -8 -8 ------------- Run | Yrd Mat Min Exi Min Mat Gar Turns Passed 3330 | 121 134 384 332 382 64 1913 Spaces Moved 1903 | 77 82 377 276 305 46 740 Core 9 | 9 . . . . . . Treads 219 | . . . . . . 219 Legs 317 | . . . . . . 317 Wheels 1358 | 68 82 377 276 305 46 204 Hover . | . . . . . . . Flight . | . . . . . . . Fastest Speed 50 | 50 90 90 90 115 115 115 Average Speed 141 | 94 94 90 97 115 115 205 Slowest Speed 400 | 100 100 90 115 115 115 400 Overloaded Moves . | . . . . . . . Propulsion Burnouts . | . . . . . . . Robots Hopped . | . . . . . . . Cave-ins Triggered . | . . . . . . . Time Travels 1 | . . . 1 . . . Exploration Rate (%) 43 | 5 13 78 67 56 5 83 Regions Visited 6 Branch Regions 3 Pre-discovered Areas 2 | . . 1 . 1 . . Known Exits Taken 1 | . . . . . 1 . Unknown Exits Taken 5 | 1 1 1 1 1 . . Scrap Searched 4 | . . 1 . 3 . . Spaces Dug 1 | . . . . . . 1 Terrain Destroyed 52 | . 27 17 . . . 8 Melee . | . . . . . . . Projectile 2 | . . . . . . 2 AOE 50 | . 27 17 . . . 6 Terrain Rammed . | . . . . . . . Walls Destroyed . | . . . . . . . Machines Disabled . | . . . . . . . Actions | -11 -10 -10 -10 -9 -8 -8 --------- Run | Yrd Mat Min Exi Min Mat Gar Total 2293 | 106 107 409 340 323 57 951 Wait 79 | . 1 16 45 7 . 10 Move 1897 | 76 81 376 275 304 45 740 Hop . | . . . . . . . Pick Up 62 | 11 5 2 5 5 8 26 Fast Attach 5 | . . . 1 . . 4 Attach 38 | 7 2 2 1 . 2 24 Detach 1 | . . . . . . 1 Swap 11 | 2 1 . 4 . 1 3 Drop 19 | . . . 9 . 1 9 Fire 154 | 10 17 13 . 7 . 107 Melee . | . . . . . . . Ram . | . . . . . . . Kick . | . . . . . . . Crush . | . . . . . . . Escape Stasis 27 | . . . . . . 27 Rewire . | . . . . . . . Trap . | . . . . . . . Miscellaneous . | . . . . . . . Route ------- -11/Scrapyard -10/Materials -10/Mines (discovered 3 exits: [*Mat x2] / *Exi) -10/Exiles -9/Mines -8/Materials -8/Garrison (discovered 3 exits: [*Mat x3]) History --------- Turn | Location | Event 22 | -11/Scrapyard | Discovered new exit (range 15) 122 | -11/Scrapyard | Entered Materials 240 | -10/Materials | Discovered new exit (range 13) 256 | -10/Materials | Entered Mines 275 | -10/Mines | Core integrity fell below 50% 306 | -10/Mines | Build established: Mutant 448 | -10/Mines | Discovered new exit (range 9) 579 | -10/Mines | Discovered new exit (range 5) 621 | -10/Mines | Learned location of Zion (-6) 637 | -10/Mines | Deemed a non-threat by the Exiles lab entrance 637 | -10/Mines | Discovered new exit (range 5) 640 | -10/Mines | Entered Exiles 662 | -10/Exiles | Met 8R-AWN 687 | -10/Exiles | Met EX-HEX 714 | -10/Exiles | Met EX-BIN 723 | -10/Exiles | Aligned with FarCom system 724 | -10/Exiles | Given EX-Vault access code 748 | -10/Exiles | Opened EX-Vault 754 | -10/Exiles | Found Prototype Device 755 | -10/Exiles | Identified Cloak of Protection 758 | -10/Exiles | Found Prototype Device 758 | -10/Exiles | Identified Chronowheel 758 | -10/Exiles | Activated Chronowheel 758 | -10/Exiles | Spacetime reconverged on an earlier point 769 | -10/Exiles | Found Prototype Device 790 | -10/Exiles | Warned to stay clear of 0b10 Research branches 801 | -10/Exiles | Exiles lab attacked by MAIN.C 904 | -10/Exiles | Discovered new exit (range 11) 972 | -10/Exiles | Left Exiles lab with Army-in-a-Box 972 | -10/Exiles | Entered Mines 1133 | -9/Mines | Received a Mining Laser from a helpful Derelict 1339 | -9/Mines | Discovered new exit (range 15) 1354 | -9/Mines | Assembled infested the area 1354 | -9/Mines | Entered Materials 1354 | -8/Materials | Evolved 4 slots: Utility x4 1415 | -8/Materials | Identified exit to Garrison 1418 | -8/Materials | Entered Garrison 1545 | -8/Garrison | Lost 3 parts (1u2w) 1614 | -8/Garrison | Triggered checkpoint 1678 | -8/Garrison | Garrison Relay disabled 1936 | -8/Garrison | Build established: Scavenger-Mutant 1981 | -8/Garrison | Discovered new exit (range 8) 2277 | -8/Garrison | Lost 5 parts (1p2n1u1w) 2394 | -8/Garrison | Triggered checkpoint 2541 | -8/Garrison | Discovered new exit (range 9) 2632 | -8/Garrison | Triggered checkpoint 2644 | -8/Garrison | System corruption reached 10% 2677 | -8/Garrison | Lost 3 parts (1p2u) 2748 | -8/Garrison | Installed Relay Interface Framework 2767 | -8/Garrison | Core integrity fell below 50% 2820 | -8/Garrison | Lost 4 parts (1p1n2w) 2887 | -8/Garrison | Garrison Relay disabled 2932 | -8/Garrison | Triggered checkpoint 2986 | -8/Garrison | Discovered new exit (range 15) 2990 | -8/Garrison | Triggered checkpoint 3143 | -8/Garrison | Core integrity fell below 20% 3178 | -8/Garrison | Lost 3 parts (2n1u) 3197 | -8/Garrison | Build established: Bothacker-Mutant 3331 | -8/Garrison | Destroyed by Y-45 Defender with Beam Rifle Last Messages --------------- Machine disabled. RIF Installer disabled. Machine disabled. System corrupted: Component data lost. The unstable cave ceiling collapses. System corrupted: Matter fused (-7). Acquired Mic. Nuclear Core. Acquired 4 matter. M7|ICVJ&%ILYTZ:MNIUVELJJ ALERT: Garrison interior compromised. ZCV<1KQ:QH2MWA4 M6OQ System corrupted: Matter fused (-6). Acquired 9 matter. Imp. Aluminum Leg destroyed. System corrupted: Energy discharge (-50). Core Shielding destroyed. HV Slug penetrates Reinforced Barrier. 5&PE <:TZOQMVUE3 |KQZCEJS Nuclear Core destroyed. Hyp. Coil Gun destroyed. Map ----- +----------------------------------------------------+ | #??????# ????# #?# ###+##???# ##??#######?????? | | #??????# ????# #?# ## #???# #???#""" "#?????? | | #??????# #####+### ## ##### ######!!!####???? | | #??????# #???? | | #??????# %[ ! #???? | | #??????# #########%% ##+#################+##???? | | ?????????????????##[ #??????????????????????????? | | ?????????????????# "??????????????????????????? | | ??????????????????# #??????????????????????????? | | ??????????????????# ###+#################+?????? | | "#????????????????# !*%= %! #???? | | "#????????????????# [ =%* * #???? | | "#????????????????# ## ##### ###### #??????? | | "#?????????+??????+ ## #???# #???????????????? | | "#????????????????# ###;##???# ##??????????????? | | "#????????????????# #?# #????# !#??????????????? | | ??????????????????# #?#Y#????# !#??????????????? | | ?????????+????????# #?# ######Y!#??????????????? | | ??????????????????# #?# +##??????????????? | | ??????????????????# #?# ##### #????????????????? | | ??????????????????# #?# #?###[#######??????????? | | ??????????????????# #?# ### # ## #??????????? | | ??????????????????# #?# ## [| "##?????????? | | ??????????????????# #?# ## #?????????? | | ??????????????????# #?# ##" ! ##?????????? | | ??????????????????# ?#@##" #?????????? | | ??????????????????+